[Event "IV Estrellas 2022"]
[Site "La Palma"]
[Date "2022.08.09"]
[Round "6.15"]
[White "Perez Bolanos, David"]
[Black "Lopez Pereyra, Antonio"]
[Result "1-0"]
[ECO "B22"]
[WhiteElo "2041"]
[BlackElo "1989"]
[Annotator "RC"]
[PlyCount "71"]
[EventDate "2022.08.06"]
[EventType "swiss"]
[EventCountry "ESP"]
[SourceTitle "playchess.com"]
[Source "ChessBase"]
[SourceQuality "1"]
[TimeControl "5400+30"]

1. d4 {[%emt 0:00:03]} e6 {[%emt 0:01:28]} 2. e4 {[%emt 0:00:53]} d5 {[%emt 0:00:05]} 3. exd5 {[%emt 0:00:25]} exd5 {[%emt 0:00:07]} 4. Bd3 {[%emt 0:00:10]} c5 {[%emt 0:00:05]} 5. Nf3 {[%emt 0:00:24]} Nf6 {[%emt 0:04:39]} 6. c3 {[%emt 0:01:35]} Be7 {[%emt 0:03:32]} 7. h3 {[%emt 0:01:55]} O-O {[%emt 0:00:51]} 8. O-O {[%emt 0:00:13]} Nc6 {[%emt 0:02:15]} 9. dxc5 {[%emt 0:03:42]} Bxc5 {[%emt 0:01:24]} 10. Nbd2 {[%emt 1:26:10]} Qd6 {[%emt 0:05:13]} 11. b4 {[%emt 0:00:00]} Bb6 {[%emt 0:00:14]} 12. Nc4 {[%emt 0:00:00]} Qc7 {[%emt 0:02:22]} 13. Nxb6 {[%emt 0:00:00]} axb6 {[%emt 0:00:02]} 14. Qc2 {[%emt 0:00:00]} Re8 15. Bb2 {[%emt 0:02:30]} Bd7 {[%emt 0:19:16]} 16. a3 {[%emt 0:00:00]} Qf4 17. Qc1 {[%emt 0:01:00]} Qd6 {[%emt 0:13:48]} 18. c4 {[%emt 0:00:00]} dxc4 {[%emt 0:01:32]} 19. Qxc4 {[%emt 0:00:00]} Be6 {[%emt 0:09:11]} 20. Qc2 {[%emt 0:00:00]} Rac8 {[%emt 0:10:28]} 21. Bxf6 {[%emt 0:00:00]} gxf6 {[%emt 0:00:08]} 22. Bxh7+ {[%emt 0:00:00]} Kg7 {[%emt 0:00:59]} 23. Rad1 {[%emt 0:00:00]} Qf4 {[%emt 0:02:20]} 24. Qe4 {[%emt 0:00:00]} Qh6 {[%emt 0:00:05]} 25. Bf5 {[%emt 0:00:00]} Bxf5 {[%emt 0:04:19]} 26. Qxf5 {[%emt 0:00:00]} Ne7 {[%emt 0:00:03]} 27. Qg4+ {[%emt 0:00:00]} Kf8 {[%emt 0:08:23]} 28. Rfe1 {[%emt 0:00:00]} Ng6 {[%emt 0:01:08]} 29. Kh2 {[%emt 0:00:00]} b5 {[%emt 0:04:42]} 30. Qf5 {[%emt 0:00:00]} Kg7 {[%emt 0:02:29]} 31. Rd6 {[%emt 0:00:00]} Nh4 {[%emt 0:03:00]} 32. Qg4+ {[%emt 0:00:00]} Ng6 {[%emt 0:00:01]} 33. Nd4 {[%emt 0:00:00]} Kf8 {[%emt 0:02:14]} 34. Rxe8+ {[%emt 0:00:00]} Rxe8 {[%emt 0:00:05]} 35. Rxf6 {[%emt 0:00:00]} Qd2 {[%emt 0:00:55]} 36. Qxg6 {[%emt 0:00:00]} 1-0

[Event "IV Estrellas 2022"]
[Site "La Palma"]
[Date "2022.08.09"]
[Round "6.16"]
[White "Cruz Gomez, Isidro"]
[Black "Marin Dorta, Alejandro"]
[Result "1/2-1/2"]
[ECO "A80"]
[WhiteElo "2089"]
[BlackElo "1869"]
[Annotator "RC"]
[PlyCount "112"]
[EventDate "2022.08.06"]
[EventType "swiss"]
[EventCountry "ESP"]
[SourceTitle "playchess.com"]
[Source "ChessBase"]
[SourceQuality "1"]
[TimeControl "5400+30"]

1. d4 {[%emt 0:00:03]} f5 {[%emt 0:00:57]} 2. Nc3 {[%emt 0:00:08]} Nf6 {[%emt 0:00:41]} 3. Bg5 {[%emt 0:00:14]} d5 {[%emt 0:00:24]} 4. e3 {[%emt 0:00:13]} Nbd7 {[%emt 0:00:28]} 5. Nf3 {[%emt 0:00:37]} e6 {[%emt 0:00:40]} 6. Bd3 {[%emt 0:00:15]} c5 {[%emt 0:00:28]} 7. dxc5 {[%emt 0:00:43]} Bxc5 {[%emt 0:01:59]} 8. O-O {[%emt 0:00:12]} O-O {[%emt 0:01:04]} 9. Na4 {[%emt 0:00:22]} b6 {[%emt 0:05:59]} 10. c4 {[%emt 0:00:47]} Bb7 {[%emt 0:01:31]} 11. cxd5 {[%emt 0:00:14]} Bxd5 {[%emt 0:01:12]} 12. Nc3 {[%emt 0:01:13]} Bxf3 {[%emt 0:00:55]} 13. gxf3 {[%emt 0:00:31]} Ne5 {[%emt 0:03:21]} 14. Be2 {[%emt 0:00:10]} h6 {[%emt 0:03:32]} 15. Qxd8 {[%emt 0:04:57]} Raxd8 {[%emt 0:00:17]} 16. Bf4 {[%emt 0:00:17]} Ng6 {[%emt 0:03:46]} 17. Bc4 {[%emt 0:03:23]} Nxf4 {[%emt 0:02:12]} 18. exf4 {[%emt 0:00:07]} Nd5 {[%emt 0:01:00]} 19. Rfe1 {[%emt 0:05:45]} Nxf4 {[%emt 0:06:01]} 20. Bxe6+ {[%emt 0:00:26]} Nxe6 {[%emt 0:02:00]} 21. Rxe6 {[%emt 0:00:07]} Rd2 {[%emt 0:00:36]} 22. Re2 {[%emt 0:00:26]} Rxe2 {[%emt 0:02:07]} 23. Nxe2 {[%emt 0:00:09]} Rd8 {[%emt 0:00:47]} 24. Rb1 {[%emt 0:00:53]} Rd2 {[%emt 0:01:06]} 25. Kf1 {[%emt 0:00:07]} a5 {[%emt 0:02:33]} 26. a3 {[%emt 0:00:19]} Kf7 {[%emt 0:04:31]} 27. b4 {[%emt 0:02:22]} Bd6 {[%emt 0:03:13]} 28. bxa5 {[%emt 0:01:06]} bxa5 {[%emt 0:00:45]} 29. Rb5 {[%emt 0:00:13]} Bxa3 {[%emt 0:06:04]} 30. Rxf5+ {[%emt 0:00:18]} Ke6 {[%emt 0:00:56]} 31. Rxa5 {[%emt 0:00:08]} Bd6 {[%emt 0:00:35]} 32. Ra6 {[%emt 0:00:18]} Ke7 {[%emt 0:01:27]} 33. h3 {[%emt 0:00:18]} Be5 {[%emt 0:05:33]} 34. f4 {[%emt 0:01:42]} Bf6 {[%emt 0:04:32]} 35. Ng3 {[%emt 0:01:04]} Rd7 {[%emt 0:01:46]} 36. Ke2 {[%emt 0:00:26]} Kf7 {[%emt 0:01:22]} 37. Kf3 {[%emt 0:00:24]} Rd3+ {[%emt 0:04:50]} 38. Ke4 {[%emt 0:00:22]} Rd4+ {[%emt 0:01:19]} 39. Ke3 {[%emt 0:00:09]} Rd7 {[%emt 0:01:03]} 40. Nf5 {[%emt 0:00:45]} Rc7 {[%emt 0:02:42]} 41. Nd6+ {[%emt 0:01:13]} Ke7 {[%emt 0:01:40]} 42. Ke4 {[%emt 0:00:56]} Rc2 {[%emt 0:04:55]} 43. f3 {[%emt 0:03:56]} Rh2 {[%emt 0:03:08]} 44. h4 {[%emt 0:00:16]} Re2+ {[%emt 0:03:25]} 45. Kf5 {[%emt 0:00:25]} Bxh4 {[%emt 0:01:50]} 46. Ne4 {[%emt 0:00:08]} Re3 {[%emt 0:03:18]} 47. Re6+ {[%emt 0:00:08]} Kf8 {[%emt 0:00:56]} 48. Kg4 {[%emt 0:03:26]} Be7 {[%emt 0:00:31]} 49. f5 {[%emt 0:00:12]} Re1 {[%emt 0:02:10]} 50. Ra6 {[%emt 0:00:28]} Rg1+ {[%emt 0:00:28]} 51. Kf4 {[%emt 0:00:37]} Rf1 {[%emt 0:01:15]} 52. Ke5 {[%emt 0:02:20]} Rxf3 {[%emt 0:03:12]} 53. Ke6 {[%emt 0:00:53]} Rd3 {[%emt 0:00:15]} 54. f6 {[%emt 0:03:05]} Bxf6 {[%emt 0:01:12]} 55. Nxf6 {[%emt 0:00:42]} gxf6 {[%emt 0:00:38]} 56. Kxf6 {[%emt 1:07:32]} Ke8 {[%emt 0:00:43]} 1/2-1/2

[Event "IV Estrellas 2022"]
[Site "La Palma"]
[Date "2022.08.09"]
[Round "6.17"]
[White "Chitsazian, Daniel"]
[Black "Perez Bolanos, Joel"]
[Result "1/2-1/2"]
[ECO "B44"]
[WhiteElo "1767"]
[BlackElo "2036"]
[Annotator "RC"]
[PlyCount "75"]
[EventDate "2022.08.06"]
[EventType "swiss"]
[EventCountry "ESP"]
[SourceTitle "playchess.com"]
[Source "ChessBase"]
[SourceQuality "1"]
[TimeControl "5400+30"]

1. e4 {[%emt 0:00:02]} c5 {[%emt 0:00:05]} 2. Nf3 {[%emt 0:00:04]} e6 {[%emt 0:00:05]} 3. d4 {[%emt 0:00:05]} cxd4 {[%emt 0:00:05]} 4. Nxd4 {[%emt 0:00:06]} Nf6 {[%emt 0:00:06]} 5. Bd3 {[%emt 0:01:00]} Nc6 {[%emt 0:01:45]} 6. Be3 {[%emt 0:04:19]} Qc7 {[%emt 0:01:57]} 7. Nb5 {[%emt 0:11:56]} Qb8 {[%emt 0:01:39]} 8. c4 {[%emt 0:01:51]} a6 {[%emt 0:01:18]} 9. N5c3 {[%emt 0:02:04]} Be7 {[%emt 0:01:38]} 10. O-O {[%emt 0:09:40]} O-O {[%emt 0:07:31]} 11. f4 {[%emt 0:03:45]} d6 {[%emt 0:01:33]} 12. g4 {[%emt 0:07:11]} Nd7 {[%emt 0:10:19]} 13. a3 {[%emt 0:12:46]} b6 {[%emt 0:02:57]} 14. Rf3 {[%emt 0:03:46]} Rd8 {[%emt 0:02:11]} 15. g5 {[%emt 0:03:59]} Nf8 {[%emt 0:04:16]} 16. Nd2 {[%emt 0:05:21]} Bb7 {[%emt 0:00:58]} 17. Rh3 {[%emt 0:02:57]} Qc7 {[%emt 0:02:17]} 18. Qh5 {[%emt 0:01:09]} Rab8 {[%emt 0:02:54]} 19. e5 {[%emt 0:09:20]} g6 {[%emt 0:02:35]} 20. Qh6 {[%emt 0:00:26]} dxe5 {[%emt 0:08:19]} 21. Nde4 {[%emt 0:01:53]} f5 {[%emt 0:01:00]} 22. gxf6 {[%emt 0:00:13]} Bc5 {[%emt 0:01:38]} 23. Bxc5 {[%emt 0:00:18]} bxc5 {[%emt 0:00:11]} 24. Ng5 {[%emt 0:00:14]} Rd7 {[%emt 0:00:27]} 25. Nce4 {[%emt 0:13:53]} Nd4 {[%emt 0:04:12]} 26. f7+ {[%emt 0:00:28]} Rxf7 {[%emt 0:00:09]} 27. Nxf7 {[%emt 0:00:08]} Qxf7 {[%emt 0:00:05]} 28. Ng5 {[%emt 0:00:34]} Qg7 {[%emt 0:06:32]} 29. Qxg7+ {[%emt 0:00:09]} Kxg7 {[%emt 0:00:02]} 30. fxe5 {[%emt 0:00:10]} h6 {[%emt 0:00:14]} 31. Ne4 {[%emt 0:00:33]} Nd7 {[%emt 0:02:50]} 32. Rb1 {[%emt 0:01:30]} Bxe4 {[%emt 0:02:47]} 33. Bxe4 {[%emt 0:00:01]} Nxe5 {[%emt 0:00:01]} 34. b3 {[%emt 0:00:41]} a5 {[%emt 0:02:10]} 35. Re3 {[%emt 0:01:43]} Ng4 {[%emt 0:03:05]} 36. Rd3 {[%emt 0:00:38]} Ne5 {[%emt 0:00:10]} 37. Re3 {[%emt 0:00:10]} Ng4 {[%emt 0:00:04]} 38. Rd3 {[%emt 0:04:27]} 1/2-1/2

[Event "IV Estrellas 2022"]
[Site "La Palma"]
[Date "2022.08.09"]
[Round "6.18"]
[White "Diaz Perez, Michel Alejandro"]
[Black "Meneses Arenas, Mikel"]
[Result "1-0"]
[ECO "A45"]
[WhiteElo "2433"]
[BlackElo "1807"]
[Annotator "TA"]
[PlyCount "37"]
[EventDate "2022.08.06"]
[EventType "swiss"]
[EventCountry "ESP"]
[SourceTitle "playchess.com"]
[Source "ChessBase"]
[SourceQuality "1"]
[TimeControl "5400+30"]

{[%evp 9,37,20,46,35,31,28,36,6,12,24,41,56,127,112,187,150,218,107,204,208,400,226,422,111,424,421,947,784,29994,29995]} 1. d4 {[%emt 0:00:05]} Nf6 {[%emt 0:00:09]} 2. Bf4 {[%emt 0:00:09]} g6 {[%emt 0:02:24]} 3. Nc3 {[%emt 0:00:15]} Bg7 {[%emt 0:00:46]} 4. e4 {[%emt 0:00:11]} O-O {[%emt 0:00:16]} 5. Qd2 {[%emt 0:00:09]} c5 {[%emt 0:01:58]} 6. d5 {[%emt 0:03:05] A45: Trompowsky Attack.} d6 {[%emt 0:04:49]} 7. Bh6 {[%emt 0:04:08]} e6 {[%emt 0:26:39]} 8. O-O-O {[%emt 0:07:33] White is slightly better.} exd5 {[%emt 0:01:22]} 9. exd5 {[%emt 0:00:14] [#]} Bh8 $146 {[%emt 0:14:32]} ({Predecessor:} 9... Nbd7 10. h3 a6 11. Bxg7 Kxg7 12. f4 b5 13. Nf3 Nb6 14. g4 b4 15. Nb1 Bb7 {0-1 (27) Fajdetic,H (2151)-Juhasz,A (2378) Chess.com INT 2021}) 10. Bxf8 {[%emt 0:04:42]} Kxf8 {[%emt 0:00:25]} (10... Qxf8 $14 11. Kb1 Bg7) 11. h4 $16 {[%emt 0:03:50][%cal Bh2h4,Bh4h5][%mdl 32]} Bd7 {[%emt 0:06:35]} (11... Kg8 $16 12. Be2 h5) 12. f3 {[%emt 0:01:30][%cal Oh4h5]} b5 {[%emt 0:11:07]} (12... h5 $16 13. g3 Na6) 13. g4 {[%emt 0:08:44]} (13. Bxb5 $18 {[%cal Ob5c6] and White stays clearly on top. Strongly threatening Bc6!} Qb6 14. Ba4) 13... Na6 {[%emt 0:10:09]} (13... b4 $16) 14. h5 $18 {[%emt 0:07:11]} Qa5 {[%emt 0:08:05] [#]} (14... Bg7 15. Bxb5 Bxb5) 15. Kb1 {[%emt 0:19:15]} ({Don't play} 15. Qf4 Kg8 16. hxg6 fxg6 17. Qxd6 Rd8 $18) (15. hxg6 $142 fxg6 16. Qh2) 15... Rb8 $2 {[%emt 0:04:19]} (15... Bg7 {was necessary.} 16. Qf4 Ne8) 16. Ne4 $2 {[%emt 0:01:38]} ({But not} 16. Qf4 Kg8 17. hxg6 fxg6 18. Qxd6 Rd8 $18) (16. hxg6 $18 fxg6 17. Qf4) 16... Nb4 $2 {[%emt 0:04:55][%mdl 8192]} (16... Qxd2 $16 17. Rxd2 Nxe4 18. fxe4 g5) 17. a3 {[%emt 0:36:21]} Nfxd5 {[%emt 0:00:00]} (17... Nxe4 $142 18. fxe4 Bg7) 18. axb4 {[%emt 0:00:00]} Nxb4 {[%emt 0:01:00]} 19. Qxd6+ {[%emt 0:01:00] Black did not feel at home in the position after the opening.  Weighted Error Value: White=0.81/Black=1.35} 1-0

[Event "IV Estrellas 2022"]
[Site "La Palma"]
[Date "2022.08.10"]
[Round "7.1"]
[White "Baskin, Robert"]
[Black "Pap, Misa"]
[Result "1/2-1/2"]
[ECO "C78"]
[WhiteElo "2408"]
[BlackElo "2375"]
[Annotator "TA"]
[PlyCount "33"]
[EventDate "2022.08.06"]
[EventType "swiss"]
[EventCountry "ESP"]
[SourceTitle "playchess.com"]
[Source "ChessBase"]
[SourceQuality "1"]
[TimeControl "5400+30"]

{[%evp 12,20,50,20,15,14,52,44,75,42,73]} 1. e4 {[%emt 0:00:07]} e5 {[%emt 0:09:44]} 2. Nf3 {[%emt 0:00:23]} Nc6 {[%emt 0:00:07]} 3. Bb5 {[%emt 0:00:09][%cal Bf1b5,Bb5a4,Ba4b3][%mdl 32]} a6 {[%emt 0:00:09]} 4. Ba4 {[%emt 0:00:07]} Nf6 {[%emt 0:00:12]} 5. O-O {[%emt 0:00:28]} b5 {[%emt 0:00:12]} 6. Bb3 {[%emt 0:00:06]} Bb7 {[%emt 0:00:03] 6...Bc5 is a critical line.} 7. Nc3 {[%emt 0:00:44]} Bc5 {[%emt 0:09:48] C78: Ruy Lopez: Archangelsk and Möller Defences.} 8. Nd5 {[%emt 0:01:54]} d6 {[%emt 0:03:35]} ({Don't take} 8... Nxe4 9. d4 $14) 9. c3 {[%emt 0:04:56] And now d4 would win.} Ba7 {[%emt 0:03:51]} ({Not} 9... Nxe4 10. Qc2 Nf6 11. d4 $16) 10. d4 {[%emt 0:03:10] Threatens to win with Bg5.} h6 {[%emt 1:07:49] [#] Prevents Bg5. Black did not feel at home in the position after the opening.  Weighted Error Value: White=0.06 (flawless) /Black=0.23 (precise)} {Predecessor:} 11. a4 $146 bxa4 12. Nxf6+ Qxf6 13. Bd5 O-O 14. Qxa4 Nd8 15. Bxb7 Nxb7 16. Qc6 Rab8 17. Rxa6 {1-0 (44) Gopal,G (2544)-Anurag,M (2349) Kolkata 2012} 1/2-1/2

[Event "IV Estrellas 2022"]
[Site "La Palma"]
[Date "2022.08.10"]
[Round "7.2"]
[White "Roeder, Matthias"]
[Black "Martinez Duany, Lelys Stanley"]
[Result "0-1"]
[ECO "A49"]
[WhiteElo "2357"]
[BlackElo "2497"]
[Annotator "TA"]
[PlyCount "132"]
[EventDate "2022.08.06"]
[EventType "swiss"]
[EventCountry "ESP"]
[SourceTitle "playchess.com"]
[Source "ChessBase"]
[SourceQuality "1"]
[TimeControl "5400+30"]

{[%evp 11,132,12,20,16,24,16,11,8,14,4,18,13,21,12,2,22,29,39,33,26,18,-19,-10,-16,-15,-14,-16,-59,0,-37,-47,-44,-5,-38,-30,-60,-30,-37,0,-167,-132,-136,-118,-244,-257,-232,-123,-122,-124,-113,-86,-95,-79,-79,-79,-79,-79,-79,-79,-93,-79,-144,-144,-137,-105,-144,-140,-203,-192,-214,-212,-283,-187,-188,-156,-163,-147,-147,-118,-207,-118,-118,-68,-68,-68,-68,-68,-109,-152,-152,-8,-8,-8,-79,-79,-12622,-4185,-5389,-2052,-29973,-29973,-29974,-29975,-29975,-29976,-29976,-29975,-29975,-29971,-29971,-29969,-29980,-29981,-29981,-29982,-29982,-29983,-29982,-29983,-29983,-29984,-29984,-29985]} 1. Nf3 {[%emt 0:00:04]} g6 {[%emt 0:00:10]} 2. d4 {[%emt 0:03:51]} Bg7 {[%emt 0:00:47]} 3. g3 {[%emt 0:02:06]} c5 {[%emt 0:00:45]} 4. c3 {[%emt 0:01:52]} Nf6 {[%emt 0:02:46]} 5. Bg2 {[%emt 0:01:13]} O-O {[%emt 0:00:20]} 6. O-O {[%emt 0:01:39]} Qc7 {[%emt 0:01:34]} 7. Na3 {[%emt 0:09:27] A49: 1 d4 Nf6 2 Nf3 g6 3 g3: Anti-King's Indian systems.} d6 {[%emt 0:00:14]} 8. Nb5 {[%emt 0:02:49]} Qb6 {[%emt 0:01:28]} 9. a4 {[%emt 0:00:59] The position is equal.} Nc6 {[%emt 0:01:53][%cal Bb8c6,Bc6a5,Ba5c4,Bc4d2][%mdl 32]} 10. d5 {[%emt 0:02:46] [#]} Na5 $146 {[%emt 0:04:42]} ({Predecessor:} 10... Nb8 11. Nd2 Na6 12. Nc4 Qd8 13. e4 Nc7 14. Nxc7 Qxc7 15. Bg5 h6 16. Bxf6 Bxf6 {1-0 (38) Seeman,T (2395)-Wallace,J (2350) Stockholm 1997}) 11. b4 {[%emt 0:00:16]} Nc4 {[%emt 0:00:06]} 12. Nd2 {[%emt 0:06:42]} Nxd2 {[%emt 0:01:43]} 13. Bxd2 {[%emt 0:03:07]} Bf5 {[%emt 0:04:11]} 14. bxc5 {[%emt 0:05:13]} Qxc5 {[%emt 0:00:16]} 15. Be3 {[%emt 0:03:28]} Qc4 {[%emt 0:00:08]} 16. Bxa7 {[%emt 0:00:42]} Be4 {[%emt 0:01:07]} 17. Bxe4 {[%emt 0:03:19]} Qxe4 {[%emt 0:00:54]} 18. Bd4 {[%emt 0:03:46]} Nxd5 {[%emt 0:00:13]} 19. e3 {[%emt 0:06:16]} Nf6 {[%emt 0:01:38]} (19... Rfc8 $15) 20. c4 {[%emt 0:01:06]} Rfc8 {[%emt 0:00:24][%cal Bf8c8,Bc8c4,Bc4d4][%mdl 32]} 21. Nc3 {[%emt 0:03:02]} Qe6 {[%emt 0:00:27]} 22. Rb1 {[%emt 0:01:41]} Rxc4 {[%emt 0:01:58]} (22... Qxc4 23. Bxf6 Bxf6 24. Nd5 $16) 23. Qf3 {[%emt 0:05:43]} (23. Rxb7 Qc8 24. Rxe7 Bf8 $15) 23... Nd7 {[%emt 0:20:04][%csl LRc3,LRd4]} (23... Rac8 24. a5 $11) 24. Rxb7 {[%emt 0:03:57]} Rac8 {[%emt 0:01:08]} (24... Rxc3 25. Bxc3 (25. Rxd7 Qxd7 26. Qxa8+ Rc8 $15) 25... Bxc3 26. Rxd7 $1 {[%mdl 512]} Rxa4 27. Rc7 $16) 25. Nd5 $2 {[%emt 0:04:50]} (25. Qd5 $11 {and White stays safe.}) 25... Bxd4 $19 {[%emt 0:00:48]} (25... Rxa4 26. Bxg7 Kxg7 27. Nf4 $16) 26. exd4 {[%emt 0:00:07]} Rxd4 {[%emt 0:00:20]} (26... Rxa4 $6 27. Nc7 Qh3 28. Nd5 $11) 27. Nc7 {[%emt 0:03:32]} (27. Rc7 $17 {keeps fighting.} Rxc7 28. Nxc7) 27... Qc4 {[%emt 0:05:10]} 28. Nd5 {[%emt 0:03:00]} Qxd5 {[%emt 0:03:57]} ({And not} 28... Rxd5 29. Rxd7 Re5 30. Qb7 $17) (28... Ne5 $1 $19 {[%cal Re5f3]} 29. Nxe7+ Kg7) 29. Qxd5 $17 {[%emt 0:00:05]} Rxd5 {[%emt 0:00:05]} 30. Rxd7 $19 {[%emt 0:00:06][%mdl 4096] Endgame KRR-KRR} Kf8 {[%emt 0:01:42]} 31. Re1 {[%emt 0:00:24]} Re5 {[%emt 0:00:22]} 32. Rxe5 {[%emt 0:00:24]} Rc1+ {[%emt 0:00:08]} 33. Kg2 {[%emt 0:00:03]} dxe5 $17 {[%emt 0:00:06] KR-KR} 34. a5 {[%emt 0:01:56]} Ra1 {[%emt 0:00:12]} 35. Rd5 {[%emt 0:01:50]} f6 {[%emt 0:00:36]} 36. g4 {[%emt 0:01:14]} (36. h4 $142) 36... Kf7 {[%emt 0:00:18]} 37. Rb5 {[%emt 0:00:28]} Ra3 {[%emt 0:01:06]} 38. Kf1 {[%emt 0:00:58]} Ra4 {[%emt 0:06:18]} 39. g5 {[%emt 0:00:58] [#]} (39. h3 $17) 39... Ke6 $1 $19 {[%emt 0:00:35]} ({Inferior is} 39... fxg5 40. Rxe5 Kf6 41. Rb5 $17) 40. gxf6 {[%emt 0:01:04]} exf6 {[%emt 0:00:09]} 41. Rb6+ {[%emt 0:00:05] [#]} Kf5 $1 {[%emt 0:00:07]} 42. a6 {[%emt 0:00:04]} Ra2 {[%emt 0:00:25]} 43. Rb7 {[%emt 0:02:28]} h5 {[%emt 0:00:23]} 44. a7 {[%emt 0:00:03]} g5 {[%emt 0:01:06] Threatens to win with ...g4.} 45. Rh7 {[%emt 0:00:54]} (45. h3 $17) 45... h4 {[%emt 0:00:36]} ({Better is} 45... Kg6 $19 46. Re7 f5) 46. h3 $17 {[%emt 0:00:23]} Kf4 {[%emt 0:00:09]} (46... e4 $17 47. Rf7 Ke5) 47. Rf7 $1 $15 {[%emt 0:01:13]} f5 {[%emt 0:00:10]} 48. f3 {[%emt 0:01:42] Prevents g4.} Ra4 {[%emt 0:05:14] aiming for ...Ra2.} 49. Ke2 {[%emt 0:00:23]} Ra3 {[%emt 0:01:14]} 50. Kd2 {[%emt 0:00:09]} Kxf3 {[%emt 0:05:14]} (50... e4 $17 51. fxe4 Kxe4) 51. Rxf5+ $11 {[%emt 0:00:08]} Ke4 {[%emt 0:00:09]} 52. Rxg5 {[%emt 0:05:07]} (52. Rf7 $1 $11 {keeps the balance.}) 52... Rxa7 $17 {[%emt 0:00:19] ...Ra3 is the strong threat. Black is more active.} 53. Ke2 $2 {[%emt 0:00:14][%mdl 8192]} ({Avoid the trap} 53. Rg4+ $2 Kf3 54. Rg5 Ra2+ 55. Ke1 e4 56. Rf5+ Kg3 $19) (53. Rh5 $17) 53... Ra2+ $19 {[%emt 0:00:23]} 54. Ke1 {[%emt 0:00:09]} Rh2 {[%emt 0:00:21] And now ...Kf4 would win.} 55. Rg4+ {[%emt 0:01:06]} Ke3 {[%emt 0:00:08] Black mates.} 56. Kf1 {[%emt 0:00:08]} Kf3 {[%emt 0:00:41]} 57. Kg1 {[%emt 0:00:16]} Rxh3 {[%emt 0:00:07]} 58. Ra4 {[%emt 0:00:02]} e4 {[%emt 0:00:18]} 59. Ra8 {[%emt 0:00:30]} Rg3+ {[%emt 0:00:13]} 60. Kf1 {[%emt 0:00:18]} h3 {[%emt 0:02:05]} 61. Rf8+ {[%emt 0:01:03]} Ke3 {[%emt 0:00:09]} 62. Rh8 {[%emt 0:00:21]} Kd2 {[%emt 0:00:28]} 63. Rd8+ {[%emt 0:00:14]} Rd3 {[%emt 0:00:10]} 64. Ra8 {[%emt 0:00:28]} Rf3+ {[%emt 0:02:48]} 65. Kg1 {[%emt 0:00:04]} e3 {[%emt 0:00:53]} 66. Ra2+ {[%emt 0:01:50]} Kc3 {[%emt 0:28:52] Weighted Error Value: White=0.43/Black=0.16 (very precise)} 0-1

[Event "IV Estrellas 2022"]
[Site "La Palma"]
[Date "2022.08.10"]
[Round "7.3"]
[White "Del Rio De Angelis, Salvador G."]
[Black "Del Rey, Diego"]
[Result "1/2-1/2"]
[ECO "D10"]
[WhiteElo "2442"]
[BlackElo "2358"]
[Annotator "TA"]
[PlyCount "28"]
[EventDate "2022.08.06"]
[EventType "swiss"]
[EventCountry "ESP"]
[SourceTitle "playchess.com"]
[Source "ChessBase"]
[SourceQuality "1"]
[TimeControl "5400+30"]

{[%evp 9,28,19,35,31,28,29,39,30,33,20,36,32,87,97,101,86,81,87,86,60,80]} 1. d4 {[%emt 0:00:13]} d5 {[%emt 0:01:52]} 2. c4 {[%emt 0:00:16]} c6 {[%emt 0:00:29]} 3. cxd5 {[%emt 0:00:58]} cxd5 {[%emt 0:00:06]} 4. Bf4 {[%emt 0:00:15]} Nc6 {[%emt 0:00:39]} 5. e3 {[%emt 0:00:24]} e6 {[%emt 0:01:39]} 6. Nc3 {[%emt 0:00:43] D10: Slav Defence: 3 cxd5 (without early Nf3) and 3 Nc3.} Bd6 $1 {[%emt 0:00:42] The main line 6...Bd6 scores better than 6...Nf6.} 7. Bxd6 {[%emt 0:05:24]} Qxd6 {[%emt 0:00:05]} 8. Bd3 {[%emt 0:00:22]} Nge7 {[%emt 0:06:48]} 9. Nf3 {[%emt 0:05:04]} a6 {[%emt 0:05:47]} 10. O-O {[%emt 0:02:26] [#]} e5 $146 {[%emt 0:06:51]} ({Black should play} 10... Bd7 $14) ({Predecessor:} 10... O-O 11. Rc1 f5 12. g3 b5 13. Ne2 b4 14. Nf4 a5 15. h4 h6 16. h5 Ba6 17. Bxa6 Rxa6 {1-0 (28) Chang,S (2035)-Mendes,R (1864) Bairro 2014}) 11. dxe5 $16 {[%emt 0:04:41]} Nxe5 {[%emt 0:00:05]} 12. Nxe5 {[%emt 0:02:42]} Qxe5 {[%emt 0:00:04]} 13. Qa4+ {[%emt 0:00:29]} Bd7 {[%emt 0:00:50]} 14. Qh4 {[%emt 1:13:33] White is more active.} Rc8 {[%emt 1:11:33] Weighted Error Value: White=0.07 (flawless) /Black=0.15 (very precise)} 1/2-1/2